bitfinex/quotes_SOLUSD_20230102
["timestamp","ask_amount","ask_price","bid_price","bid_amount"]
[1672622033609,22.933,9.8987,9.8879,30.0]
[1672622033814,22.933,9.8987,9.889,30.0]
[1672622034023,22.933,9.8986,9.889,30.0]
[1672622034246,30.0,9.8985,9.8891,20.0]
[1672622034868,30.0,9.8985,9.8888,20.0]
[1672622035070,30.0,9.8985,9.8887,20.0]
[1672622035277,30.0,9.8985,9.8887,30.0]
[1672622035493,30.0,9.8985,9.8889,15.80730786]
[1672622035908,30.0,9.8985,9.8912,75.43309157]
[1672622036144,22.933,9.8986,9.8912,75.43309157]
[1672622036328,22.933,9.8986,9.8913,20.0]
[1672622036762,22.933,9.8986,9.8914,30.0]
[1672622036968,22.933,9.8986,9.8915,20.0]
[1672622037798,22.933,9.8986,9.8916,30.0]
[1672622038005,22.933,9.8986,9.8917,20.0]
[1672622040332,22.933,9.8986,9.8901,30.0]
[1672622040537,22.933,9.8986,9.8902,20.0]
[1672622040747,22.933,9.8986,9.8903,30.0]
[1672622040959,22.933,9.8986,9.8903,45.80730786]
[1672622041180,22.933,9.8986,9.8904,15.80730786]
[1672622041386,22.933,9.8986,9.8906,30.0]
[1672622041811,22.933,9.8986,9.8907,101.77915935]
[1672622042238,22.933,9.8986,9.8908,15.80730786]
[1672622042554,22.933,9.8986,9.891,30.0]
[1672622042763,22.933,9.8986,9.8911,20.0]
[1672622042969,22.933,9.8986,9.8912,30.0]
[1672622043181,22.933,9.8986,9.8912,45.80730786]
[1672622043382,22.933,9.8986,9.8913,35.80730786]
[1672622043593,22.933,9.8986,9.8913,20.0]
[1672622043799,30.0,9.8985,9.8909,20.0]
[1672622044005,30.0,9.8985,9.8907,20.0]
[1672622044223,22.8384,9.8985,9.891,15.80730786]
[1672622044439,22.8384,9.8985,9.8912,30.0]
[1672622044656,22.8384,9.8985,9.8913,20.0]
[1672622044971,22.8384,9.8985,9.8913,35.80730786]
[1672622045599,22.8384,9.8985,9.8914,30.0]
[1672622045806,22.8384,9.8985,9.8915,20.0]
[1672622046331,22.8384,9.8985,9.8915,35.80730786]
[1672622046769,22.8384,9.8985,9.8916,30.0]
[1672622046949,22.8384,9.8985,9.8917,20.0]
[1672622047159,22.8384,9.8985,9.8917,35.80730786]
[1672622047384,22.8384,9.8985,9.8918,45.80730786]
[1672622047592,22.8384,9.8985,9.892,30.0]
[1672622047805,22.8384,9.8985,9.8921,20.0]
[1672622048013,22.8384,9.8985,9.8922,30.0]
[1672622048335,22.8384,9.8985,9.8923,20.0]
[1672622048550,22.8384,9.8985,9.8923,35.80730786]
[1672622048753,22.8384,9.8985,9.8924,15.80730786]
[1672622048951,22.8384,9.8985,9.8926,30.0]
[1672622049158,22.8384,9.8985,9.8927,20.0]
[1672622049374,22.8384,9.8985,9.8928,30.0]
[1672622049593,22.8384,9.8985,9.8928,45.80730786]
[1672622049801,22.8384,9.8985,9.8929,20.0]
[1672622050000,22.8384,9.8985,9.893,30.0]
[1672622050209,22.8384,9.8985,9.893,45.80730786]
[1672622050415,22.8384,9.8985,9.8931,35.80730786]
[1672622050737,22.8384,9.8985,9.8932,15.80730786]
[1672622051169,22.8384,9.8985,9.8931,20.0]
[1672622051382,75.9,9.8984,9.8894,20.0]
[1672622051593,30.0,9.8983,9.8894,20.0]
[1672622051805,30.0,9.8983,9.8803,30.0]
[1672622051806,30.0,9.8981,9.888,30.0]
[1672622052003,30.0,9.8981,9.8895,15.80730786]
[1672622052004,75.9,9.898,9.8895,15.80730786]
[1672622052214,54.0456,9.8981,9.8895,15.80730786]
[1672622052437,54.0456,9.8981,9.8896,20.0]
[1672622053289,75.9,9.898,9.8879,20.0]
[1672622053512,30.0,9.8979,9.8879,20.0]
[1672622054014,30.0,9.8979,9.888,30.0]
[1672622054430,30.0,9.8979,9.8882,30.0]
[1672622054645,30.0,9.8979,9.8883,20.0]
[1672622054969,30.0,9.8979,9.8884,30.0]
[1672622055398,30.0,9.8979,9.8886,30.0]
[1672622055579,30.0,9.8979,9.8887,20.0]
[1672622055791,54.0456,9.8981,9.89,11.5]
[1672622056020,23.3086,9.898,9.89,11.5]
[1672622056224,23.3086,9.898,9.8901,15.80730786]
[1672622056442,23.3086,9.898,9.8901,35.80730786]
[1672622056753,30.0,9.8979,9.8901,20.0]
[1672622057183,30.0,9.8979,9.8879,130.6167]
[1672622058123,30.0,9.8977,9.8879,130.6167]
[1672622060222,24.9744,9.8976,9.8879,130.6167]
[1672622060435,30.0,9.8975,9.8879,130.6167]
[1672622060839,53.5387,9.8975,9.8879,130.6167]
[1672622062102,30.0,9.8973,9.8879,130.6167]
[1672622062858,53.5387,9.8973,9.8879,130.6167]
[1672622063051,53.5387,9.8973,9.8879,128.1167]
[1672622063264,53.5387,9.8973,9.888,15.80730786]
[1672622063698,53.5387,9.8973,9.8881,20.0]
[1672622063895,30.0,9.8971,9.8881,20.0]
[1672622064100,30.0,9.8971,9.8882,15.80730786]
[1672622064314,30.0,9.8971,9.8883,20.0]
[1672622064532,53.3782,9.8971,9.8883,20.0]
[1672622064856,53.3782,9.8971,9.8884,15.80730786]
[1672622065275,53.3782,9.8971,9.8885,20.0]
[1672622065692,30.0,9.8969,9.8886,15.80730786]
[1672622066018,30.0,9.8969,9.8887,20.0]
[1672622066203,30.0,9.8967,9.8887,20.0]
[1672622066420,30.0,9.8967,9.8888,15.80730786]
[1672622066838,30.0,9.8967,9.8889,20.0]
[1672622067371,30.0,9.8967,9.889,15.80730786]
[1672622067898,30.0,9.8967,9.8891,20.0]
[1672622068113,54.1068,9.8967,9.8891,20.0]
[1672622068303,54.1068,9.8967,9.8892,15.80730786]
[1672622068937,54.1068,9.8967,9.8893,20.0]
[1672622070110,30.0,9.8965,9.8893,20.0]
[1672622071784,24.1068,9.8966,9.8893,20.0]
[1672622071992,24.1068,9.8966,9.8894,15.80730786]
[1672622072320,24.1068,9.8966,9.8901,30.0]
[1672622072526,24.4295,9.8965,9.8902,20.0]
[1672622072733,24.4295,9.8965,9.8902,35.80730786]
[1672622072927,24.4295,9.8965,9.8902,20.0]
[1672622073141,30.0,9.8964,9.8902,20.0]
[1672622073351,24.4295,9.8965,9.8886,20.0]
[1672622073670,24.4295,9.8965,9.8903,15.80730786]
[1672622073873,24.4295,9.8965,9.8904,20.0]
[1672622074515,24.4295,9.8965,9.8905,15.80730786]
[1672622075035,24.4295,9.8965,9.8906,20.0]
[1672622077694,24.4295,9.8965,9.8899,20.0]
[1672622078008,24.4295,9.8965,9.8899,35.80730786]
[1672622078320,24.4942,9.8964,9.8899,35.80730786]
[1672622078725,24.4942,9.8963,9.8899,20.0]
[1672622079145,24.4942,9.8963,9.8888,20.0]
[1672622079593,30.0,9.8962,9.8888,20.0]
[1672622080221,30.0,9.8962,9.8881,20.0]
[1672622080587,30.0,9.8962,9.8879,108.1167]
[1672622080588,30.0,9.8962,9.888,20.0]
[1672622082001,52.5259,9.8962,9.888,20.0]
[1672622084026,52.5259,9.8962,9.8802,75.43309157]
[1672622084224,11.59,9.89,9.8795,75.43309157]
[1672622084413,235.5097,9.8899,9.8795,75.43309157]
[1672622084751,235.5097,9.8899,9.8786,15.80730786]
[1672622084752,30.0,9.8898,9.8796,75.43309157]
[1672622084973,75.97,9.8897,9.8796,75.43309157]
[1672622085178,30.0,9.8896,9.8796,75.43309157]
[1672622085368,75.97,9.8895,9.8797,20.0]
[1672622085567,235.5097,9.8895,9.8787,95.43309157]
[1672622085781,159.5397,9.8894,9.8787,95.43309157]
[1672622085990,75.97,9.8893,9.8787,20.0]
[1672622086217,30.0,9.8892,9.8784,20.0]
[1672622086425,75.97,9.8891,9.8784,95.43309157]
[1672622086823,195.6933,9.8892,9.8784,95.43309157]
[1672622087037,165.6213,9.889,9.8784,95.43309157]
[1672622087260,30.0,9.8889,9.8785,75.43309157]
[1672622087479,30.0,9.8889,9.8786,20.0]
[1672622087694,165.6213,9.8888,9.8784,35.80730786]
[1672622088013,30.0,9.8887,9.8784,20.0]
[1672622088216,75.98,9.8886,9.8784,20.0]
[1672622088420,30.0,9.8885,9.8781,20.0]
[1672622088638,75.98,9.8884,9.8781,20.0]
[1672622088839,30.0,9.8883,9.8781,20.0]
[1672622089044,30.0,9.8881,9.8781,20.0]
[1672622089267,75.98,9.888,9.8781,20.0]
[1672622089462,241.0396,9.888,9.8781,20.0]
[1672622089677,30.0,9.8879,9.8781,20.0]
[1672622089901,30.0,9.8877,9.8781,20.0]
[1672622090095,30.0,9.8875,9.8781,20.0]
[1672622090309,75.98,9.8874,9.8781,20.0]
[1672622090523,30.0,9.8873,9.8781,20.0]
[1672622090741,78.8052,9.8873,9.8781,20.0]
[1672622091347,30.0,9.8871,9.8781,20.0]
[1672622092010,30.0,9.8869,9.8781,20.0]
[1672622092413,24.9482,9.8868,9.8781,20.0]
[1672622092614,30.0,9.8867,9.8781,20.0]
[1672622093083,24.9482,9.8866,9.8781,20.0]
[1672622093267,30.0,9.8865,9.8781,20.0]
[1672622095671,23.8099,9.8864,9.8781,20.0]
[1672622095864,23.8099,9.8864,9.8678,75.43309157]
[1672622095865,408.19,9.8863,9.8678,75.43309157]
[1672622096086,11.55,9.88,9.8674,30.0]
[1672622096394,30.0,9.8798,9.8675,111.3245]
[1672622096703,76.04,9.8799,9.8728,9.117]
[1672622096926,857.62202265,9.8861,9.8728,9.117]
[1672622097141,111.5107,9.8859,9.8729,30.0]
[1672622097335,111.5107,9.8859,9.8734,30.0]
[1672622097604,111.5107,9.8859,9.8735,20.0]
[1672622097752,111.5107,9.8858,9.8736,30.0]
[1672622097983,111.5107,9.8858,9.8736,141.94143674]
[1672622098186,30.0,9.8857,9.8737,20.0]
[1672622098386,30.0,9.8857,9.8738,30.0]
[1672622098702,30.0,9.8857,9.8739,30.0]
[1672622098913,30.0,9.8857,9.8741,30.0]
[1672622099143,30.0,9.8857,9.8742,20.0]
[1672622099335,30.0,9.8857,9.8742,35.80730786]
[1672622099552,111.5107,9.8858,9.8743,30.0]
[1672622099766,111.5107,9.8858,9.8744,20.0]
[1672622099974,111.5107,9.8858,9.8745,30.0]
[1672622100176,111.5107,9.8858,9.8745,45.80730786]
[1672622100384,30.0,9.8857,9.8747,30.0]
[1672622100617,30.0,9.8857,9.8748,20.0]
[1672622100916,30.0,9.8857,9.8746,109.44053155]
[1672622100917,30.0,9.8857,9.8746,93.63322369]
[1672622101116,30.0,9.8857,9.8747,30.0]
[1672622101347,30.0,9.8857,9.8748,20.0]
[1672622101536,162.08725096,9.8857,9.8748,20.0]
[1672622101767,162.08725096,9.8857,9.8747,20.0]
[1672622103014,162.08725096,9.8857,9.8748,30.0]
[1672622103224,162.08725096,9.8857,9.8749,20.0]
[1672622103449,76.0,9.8856,9.8749,20.0]
[1672622103666,30.0,9.8855,9.8749,20.0]
[1672622103856,76.0,9.8854,9.8746,73.63322369]
[1672622104076,76.0,9.8854,9.8711,19.36]
[1672622104077,240.6352,9.8854,9.8711,19.36]
[1672622104391,194.6352,9.8853,9.871,10.8855767]
[1672622104600,76.0,9.8852,9.871,10.8855767]
[1672622104845,264.0983,9.8852,9.871,10.8855767]
[1672622105073,30.0,9.8851,9.871,10.8855767]
[1672622105244,76.0,9.885,9.8711,20.0]
[1672622105423,30.0,9.8849,9.8711,20.0]
[1672622105637,76.01,9.8848,9.8711,20.0]
[1672622105979,30.0,9.8847,9.8711,20.0]
[1672622106179,76.01,9.8846,9.8711,20.0]
[1672622106391,30.0,9.8845,9.8711,20.0]
[1672622106583,76.01,9.8844,9.8711,20.0]
[1672622106811,242.5526,9.8844,9.8711,20.0]
[1672622107024,30.0,9.8843,9.8711,19.5]
[1672622107246,76.01,9.8842,9.8711,19.5]
[1672622107450,242.5526,9.8842,9.8711,19.5]
[1672622107759,30.0,9.8841,9.8711,19.5]
[1672622107959,30.0,9.8839,9.8711,19.5]
[1672622108163,76.01,9.8838,9.8711,19.5]
[1672622108504,30.0,9.8837,9.8711,19.5]
[1672622108697,30.0,9.8835,9.8711,19.5]
[1672622108912,30.0,9.8833,9.8711,19.5]
[1672622109108,76.02,9.8832,9.8711,19.5]
[1672622109325,234.043,9.8832,9.8711,19.5]
[1672622109543,366.13025096,9.8832,9.8711,19.5]
[1672622109752,11.47,9.88,9.8711,19.5]
[1672622110196,76.04,9.8799,9.8711,19.5]
[1672622110585,30.0,9.8797,9.8711,19.5]
[1672622110800,106.04,9.8797,9.8711,19.5]
[1672622111312,30.0,9.8795,9.8711,19.5]
[1672622111529,45.997,9.8796,9.8711,19.5]
[1672622111735,45.997,9.8794,9.8711,19.5]
[1672622111963,30.0,9.8793,9.8711,19.5]
[1672622112386,30.0,9.8791,9.8711,19.5]
[1672622112578,24.2416,9.8792,9.8711,19.5]
[1672622113719,24.2416,9.8791,9.8711,19.5]
[1672622114038,24.2416,9.8791,9.8712,30.0]
[1672622114250,24.2416,9.879,9.8712,30.0]
[1672622114456,24.2416,9.8789,9.8713,20.0]
[1672622115081,22.5549,9.8788,9.8713,20.0]
[1672622115309,22.5549,9.8788,9.8711,20.0]
[1672622115633,30.0,9.8787,9.8711,20.0]
[1672622115841,52.5549,9.8787,9.8711,20.0]
[1672622116442,22.5549,9.8786,9.8711,20.0]
[1672622116659,30.0,9.8785,9.8711,20.0]
[1672622117078,30.0,9.8783,9.8711,20.0]
[1672622117829,22.5549,9.8782,9.8711,20.0]
[1672622118039,30.0,9.8781,9.8711,20.0]
[1672622118454,30.0,9.8779,9.8711,20.0]
[1672622119087,23.5089,9.8778,9.8711,20.0]
[1672622119300,30.0,9.8777,9.8711,20.0]
[1672622119831,30.0,9.8775,9.8711,20.0]
[1672622120455,53.5089,9.8775,9.8711,20.0]
[1672622121089,23.5089,9.8775,9.8711,20.0]
[1672622121738,30.0,9.8774,9.8711,20.0]
[1672622122476,53.8213,9.8774,9.8711,20.0]
[1672622131318,143.91256383,9.8774,9.8711,20.0]
[1672622131913,175.79671399,9.8774,9.8711,20.0]
[1672622132345,30.0,9.8773,9.8711,20.0]
[1672622133176,151.97541399,9.8773,9.8711,20.0]
[1672622134540,302.2,9.8772,9.8621,75.43309157]
[1672622134763,302.2,9.8772,9.838,262.2]
[1672622134764,175.1042767,9.8661,9.8588,177.73485751]
[1672622134982,302.2,9.8659,9.8439,175.39291495]
[1672622135202,98.39640663,9.8619,9.8536,0.0055744]
[1672622135518,11.67,9.86,9.8536,0.0055744]
[1672622135736,30.0,9.8598,9.8536,0.0055744]
[1672622136042,96.2,9.8597,9.8524,0.01033782]
[1672622136246,30.0,9.8596,9.8524,0.01033782]
[1672622136437,30.0,9.8593,9.8524,0.01033782]
[1672622136651,30.0,9.859,9.839,30.0]
[1672622136862,96.21,9.8589,9.8408,15.80730786]
[1672622137093,76.21,9.8589,9.8413,30.0]
[1672622137298,76.18,9.8623,9.8414,20.0]
[1672622137515,30.0,9.8622,9.8415,30.0]
[1672622137836,30.0,9.862,9.8417,30.0]
[1672622138143,30.0,9.8618,9.8419,30.0]
[1672622138342,76.18,9.8617,9.842,20.0]
[1672622138586,76.18,9.8617,9.8421,30.0]
[1672622138587,30.0,9.8616,9.8421,30.0]
[1672622138796,30.0,9.8614,9.8423,30.0]
[1672622139002,76.19,9.8613,9.8423,30.0]
[1672622139331,30.0,9.8612,9.8424,35.80730786]
[1672622139580,30.0,9.861,9.8425,30.0]
[1672622139766,76.19,9.8609,9.8426,20.0]
[1672622139964,76.19,9.8609,9.8427,30.0]
[1672622140283,170.14127402,9.8795,9.8428,20.0]
[1672622140284,76.19,9.8611,9.8428,20.0]
[1672622140587,30.0,9.8616,9.85,11.67]
[1672622140795,76.18,9.8615,9.8501,20.0]
[1672622141223,30.0,9.8614,9.8501,20.0]
[1672622141411,30.0,9.8612,9.8501,20.0]
[1672622141619,76.19,9.8611,9.843,20.0]
[1672622141829,30.0,9.861,9.8431,30.0]
[1672622142055,30.0,9.8608,9.8433,30.0]
[1672622142266,76.19,9.8607,9.8434,20.0]
[1672622142485,30.0,9.8606,9.8435,30.0]
[1672622142680,76.19,9.8605,9.8435,45.80730786]
[1672622142886,30.0,9.8604,9.8436,20.0]
[1672622143094,76.19,9.8603,9.8436,35.80730786]
[1672622143540,30.0,9.8602,9.8437,30.0]
[1672622143732,76.2,9.8601,9.8438,20.0]
[1672622143940,30.0,9.86,9.8438,20.0]
[1672622144266,30.0,9.8598,9.844,30.0]
[1672622144462,76.2,9.8597,9.844,30.0]
[1672622144674,30.0,9.8596,9.8441,20.0]
[1672622144898,76.2,9.8595,9.8441,20.0]
[1672622145113,30.0,9.8594,9.8441,20.0]
[1672622145303,76.2,9.8593,9.8436,20.0]
[1672622145511,30.0,9.8592,9.8436,20.0]
[1672622145732,30.0,9.859,9.8436,20.0]
[1672622145935,76.21,9.8589,9.8432,20.0]
[1672622146147,30.0,9.8588,9.8432,20.0]
[1672622146361,30.0,9.8586,9.8433,30.0]
[1672622146580,30.0,9.8584,9.8435,30.0]
[1672622146769,76.21,9.8583,9.8436,20.0]
[1672622146985,30.0,9.8582,9.8436,20.0]
[1672622147194,76.21,9.8581,9.8436,20.0]
[1672622147620,30.0,9.858,9.8437,30.0]
[1672622147842,30.0,9.8578,9.8438,20.0]
[1672622148042,76.21,9.8577,9.8438,20.0]
[1672622148243,30.0,9.8576,9.8438,20.0]
[1672622148469,30.0,9.8574,9.8412,20.0]
[1672622148666,76.22,9.8573,9.8412,20.0]
[1672622148885,30.0,9.8572,9.8412,20.0]
[1672622149095,76.22,9.8571,9.8412,20.0]
[1672622149419,30.0,9.857,9.8412,20.0]
[1672622149625,30.0,9.8568,9.8412,20.0]
[1672622149829,76.22,9.8567,9.84,11.63]
[1672622150024,30.0,9.8566,9.8374,15.80730786]
[1672622150235,76.22,9.8565,9.8358,30.0]
[1672622150442,30.0,9.8564,9.8358,30.0]
[1672622150678,30.0,9.8562,9.8358,30.0]
[1672622150887,76.23,9.8561,9.8358,30.0]
[1672622151198,30.0,9.856,9.8358,30.0]
[1672622151413,378.43,9.8559,9.8341,133.3598]
[1672622151628,378.43,9.8559,9.83,11.56]
[1672622151629,11.62,9.85,9.83,11.56]
[1672622151821,96.27,9.8499,9.83,11.56]
[1672622152076,30.0,9.8498,9.83,11.56]
[1672622152231,96.28,9.8497,9.83,11.76]
[1672622152558,30.0,9.8496,9.83,11.76]
[1672622152666,332.2,9.8494,9.8411,16.56]
[1672622152863,33.77348957,9.8408,9.8291,278.20032734]
[1672622153120,11.76,9.84,9.8291,278.20032734]
[1672622153279,76.35,9.8399,9.8291,278.20032734]
[1672622153484,30.0,9.8398,9.8291,278.20032734]
[1672622153717,76.35,9.8397,9.8291,278.20032734]
[1672622153946,76.35,9.8406,9.83,11.7]
[1672622154154,33.77348957,9.8408,9.8301,30.0]
[1672622155192,33.77348957,9.8408,9.8302,20.0]
[1672622155383,33.77348957,9.8408,9.8303,30.0]
[1672622155592,33.77348957,9.8408,9.8304,20.0]
[1672622156016,33.77348957,9.8408,9.8305,30.0]
[1672622156262,33.77348957,9.8408,9.8306,20.0]
[1672622156440,30.0,9.8407,9.8306,20.0]
[1672622156654,33.77348957,9.8408,9.8306,20.0]
[1672622156856,33.77348957,9.8408,9.8303,30.0]
[1672622157071,33.77348957,9.8408,9.8304,20.0]
[1672622157482,30.0,9.8407,9.8304,20.0]
[1672622157738,33.77348957,9.8408,9.8305,30.0]
[1672622157920,33.77348957,9.8408,9.8306,20.0]
[1672622158137,33.77348957,9.8408,9.8307,30.0]
[1672622158353,33.77348957,9.8408,9.8309,30.0]
[1672622158757,33.77348957,9.8408,9.831,20.0]
[1672622159428,33.77348957,9.8408,9.8311,30.0]
[1672622159620,33.77348957,9.8408,9.8312,20.0]
[1672622160445,33.77348957,9.8408,9.8313,30.0]
[1672622160655,58.53,9.86,9.8313,30.0]
[1672622160656,504.79204897,9.8599,9.8315,30.0]
[1672622160873,215.7751,9.8568,9.84,11.7]
[1672622161091,191.9645,9.8567,9.84,11.7]
[1672622161284,30.0,9.8565,9.8401,90.61159065]
[1672622161527,76.22,9.8564,9.8401,90.61159065]
[1672622161702,194.2293,9.8564,9.8402,70.61159065]
[1672622161931,30.0,9.8563,9.8403,50.0]
[1672622162129,76.23,9.8562,9.8403,50.0]
[1672622162340,30.0,9.8561,9.8404,70.61159065]
[1672622162561,30.0,9.8561,9.8406,30.0]
[1672622162773,76.23,9.856,9.8407,20.0]
[1672622162961,30.0,9.8559,9.8407,90.61159065]
[1672622163186,76.23,9.8558,9.8407,90.61159065]
[1672622163406,30.0,9.8557,9.8407,90.61159065]
[1672622163589,30.0,9.8555,9.8408,30.0]
[1672622163809,76.23,9.8554,9.8409,20.0]
[1672622164140,30.0,9.8557,9.841,30.0]
[1672622164323,114.64506902,9.8554,9.8411,20.0]
[1672622164534,30.0,9.8553,9.8412,30.0]
[1672622164749,30.0,9.8553,9.8413,20.0]
[1672622164957,139.5494,9.8557,9.8414,30.0]
[1672622165203,114.64506902,9.8553,9.8414,100.61159065]
[1672622165401,114.64506902,9.8553,9.8415,90.61159065]
[1672622165585,30.0,9.8552,9.8416,30.0]
[1672622165794,30.0,9.8552,9.8417,20.0]
[1672622166216,76.23,9.8551,9.8417,20.0]
[1672622166427,11.68,9.85,9.8418,20.0]
[1672622166656,76.27,9.8499,9.8317,30.0]
[1672622166984,30.0,9.8498,9.8317,30.0]
[1672622167187,76.28,9.8497,9.8317,30.0]
[1672622167393,30.0,9.8496,9.8317,30.0]
[1672622167584,76.28,9.8495,9.8317,30.0]
[1672622167798,76.28,9.8495,9.832,93.19814869]
[1672622168008,30.0,9.8494,9.832,93.19814869]
[1672622168346,30.0,9.8492,9.8322,30.0]
[1672622168536,76.28,9.8491,9.8323,20.0]
[1672622168980,30.0,9.849,9.8323,20.0]
[1672622169181,76.28,9.8489,9.8323,20.0]
[1672622169491,30.0,9.8488,9.8324,30.0]
[1672622169701,30.0,9.8486,9.8326,30.0]
[1672622169901,76.29,9.8485,9.8327,20.0]
[1672622170115,30.0,9.8484,9.8327,20.0]
[1672622170310,76.29,9.8483,9.8327,20.0]
[1672622170732,150.93506902,9.8483,9.8327,20.0]
[1672622170942,114.3638,9.8482,9.8327,20.0]
[1672622171169,76.29,9.8481,9.8327,20.0]
[1672622171577,144.3638,9.848,9.8327,20.0]
[1672622171767,30.0,9.8478,9.8327,20.0]
[1672622171982,76.29,9.8477,9.8327,20.0]
[1672622172190,30.0,9.8476,9.8327,20.0]
[1672622172400,76.29,9.8475,9.8327,20.0]
[1672622172837,138.1935,9.8474,9.8327,20.0]
[1672622173160,30.0,9.8472,9.8327,20.0]
[1672622173368,76.3,9.8471,9.8327,20.0]
[1672622173984,108.1935,9.847,9.8327,20.0]
[1672622174199,30.0,9.8468,9.8327,20.0]
[1672622174417,76.3,9.8467,9.8327,20.0]
[1672622175262,30.0,9.8465,9.8327,20.0]
[1672622175466,76.3,9.8464,9.8327,20.0]
[1672622175891,259.30836902,9.8464,9.8327,20.0]
[1672622176205,30.0,9.8463,9.8327,20.0]
[1672622176421,76.3,9.8462,9.8327,20.0]
[1672622176829,30.0,9.8461,9.8327,20.0]
[1672622177031,76.3,9.846,9.8327,20.0]
[1672622177245,30.0,9.8459,9.8328,30.0]
[1672622177457,76.31,9.8458,9.8329,20.0]
[1672622177669,30.0,9.8457,9.833,30.0]
[1672622177992,76.31,9.8456,9.833,30.0]
[1672622178207,76.31,9.8457,9.833,30.0]
[1672622178417,74.64506902,9.8457,9.833,30.0]
[1672622178607,30.0,9.8456,9.833,30.0]
[1672622179032,30.0,9.8456,9.8329,20.0]
[1672622179237,30.0,9.8454,9.8327,20.0]
[1672622179882,104.64506902,9.8454,9.8327,20.0]
[1672622180091,104.64506902,9.8454,9.8328,30.0]
[1672622180418,104.64506902,9.8454,9.8329,20.0]
[1672622180606,74.64506902,9.8454,9.8329,20.0]
[1672622180821,74.64506902,9.8454,9.8326,24.65]
[1672622180822,74.64506902,9.8454,9.8327,20.0]
[1672622181044,74.64506902,9.8454,9.8328,30.0]
[1672622181241,30.0,9.8453,9.8329,20.0]
[1672622181588,30.0,9.8453,9.833,30.0]
[1672622181981,104.64506902,9.8453,9.833,30.0]
[1672622183019,104.64506902,9.8453,9.8329,20.0]
[1672622183247,76.31,9.8452,9.8329,20.0]
[1672622183658,30.0,9.8451,9.8327,20.0]
[1672622183864,76.31,9.845,9.8327,20.0]
[1672622184076,30.0,9.8449,9.8327,20.0]
[1672622184288,76.31,9.8448,9.8327,20.0]
[1672622184729,30.0,9.8447,9.8327,20.0]
[1672622184922,30.0,9.8445,9.8327,20.0]
[1672622185131,76.32,9.8444,9.8327,20.0]
[1672622185554,194.4471,9.8444,9.8327,20.0]
[1672622185770,30.0,9.8443,9.8327,20.0]
[1672622186090,30.0,9.8441,9.8327,20.0]
[1672622186302,76.32,9.844,9.8327,20.0]
[1672622186495,30.0,9.8439,9.8327,20.0]
[1672622186836,30.0,9.8437,9.8327,20.0]
[1672622187017,30.0,9.8435,9.8327,20.0]
[1672622187233,76.33,9.8434,9.8327,20.0]
[1672622187987,150.97506902,9.8434,9.8327,20.0]
[1672622188185,30.0,9.8433,9.8327,20.0]
[1672622188396,76.33,9.8432,9.8327,20.0]
[1672622189018,30.0,9.8431,9.8327,20.0]
[1672622189228,76.33,9.843,9.8327,20.0]
[1672622189883,30.0,9.8429,9.8327,20.0]
[1672622190188,76.33,9.8428,9.8327,20.0]
[1672622190802,30.0,9.8427,9.8327,20.0]
[1672622191015,76.33,9.8426,9.8327,20.0]
[1672622191543,74.64506902,9.8426,9.8327,20.0]
[1672622191753,76.33,9.8425,9.8327,20.0]
[1672622191966,30.0,9.8424,9.8327,20.0]
[1672622192181,76.33,9.8423,9.8327,20.0]
[1672622192819,30.0,9.8422,9.8327,20.0]
[1672622193017,76.34,9.8421,9.8327,20.0]
[1672622193232,76.33,9.8422,9.8327,20.0]
[1672622193643,74.64506902,9.8421,9.8327,20.0]
[1672622193853,76.34,9.842,9.8327,20.0]
[1672622194064,30.0,9.8419,9.8327,20.0]
[1672622194700,104.64506902,9.8419,9.8327,20.0]
[1672622195028,76.34,9.8418,9.8291,241.75651406]
[1672622195219,9.35,9.84,9.8291,241.75651406]
[1672622195432,76.35,9.8399,9.8291,241.75651406]
[1672622196076,74.64506902,9.8399,9.83,9.41]
[1672622196265,74.64506902,9.8399,9.8301,20.0]
[1672622196472,74.64506902,9.8399,9.8301,63.19814869]
[1672622196700,74.64506902,9.8399,9.8291,241.75651406]
[1672622196701,302.2,9.8393,9.8291,241.75651406]
[1672622196907,74.71527565,9.8395,9.8291,241.75651406]